Cogmind - Beta 13 *** ADVENTURER MODE // 2024.04.01 @ 21:52:17 Player: Hnefi Result: Destroyed by G-34 Mercenary with Small Laser Performance ------------- Evolutions (1) 500 Regions Visited (2) 400 Robots Destroyed (11) 55 Value Destroyed (339) 339 Prototype IDs (0) 0 Alien Tech Used (0) 0 Bonus (0) 0 TOTAL SCORE: 1294 Bonus ------- None Cogmind --------- Core Integrity 0/400 Matter 300/300 Energy 265/265 System Corruption 0% Temperature Cool (12) Movement Core (350) Ox6 Location -9/Materials Parts ------- > --- POWER (1) -------- Reinforced Ion Engine > --- PROPULSION (3) --- (None) > --- UTILITY (3) ------ Medium Storage Unit > --- WEAPON (2) ------- (None) > --- INVENTORY (10) --- Light Treads Small Storage Unit Light Assault Rifle Grenade Launcher Datajack Mining Laser Peak State ------------ > --- POWER ------------ Ion Engine > --- PROPULSION ------- Wheel Wheel > --- UTILITY ---------- Improved Heat Sink Medium Storage Unit > --- WEAPON ----------- Medium Laser Particle Gun > --- INVENTORY -------- Small Storage Unit Medium Laser Small Laser Light Assault Rifle Light Assault Rifle Datajack Mining Laser [Rating: 10] Favorites ----------- Power Ion Engine Engine Ion Engine Propulsion Wheel Wheel Wheel Flight Unit Flight Unit Utility Medium Storage Unit Device Improved Heat Sink Storage Medium Storage Unit Weapon Medium Laser Energy Gun Medium Laser Ballistic Gun Light Assault Rifle Special Weapon Plasma Cutter Special Melee Weapon Datajack Build | -11 -10 -9 ------- Run | Yrd Mat Mat Slots Evolved 2 | . . 2 Power . | . . . Propulsion 1 | . . 1 Utility 1 | . . 1 Weapon . | . . . Parts Attached 20 | 7 6 7 Power 2 | 1 . 1 Engine 2 | 1 . 1 Core . | . . . Reactor . | . . . Propulsion 3 | 2 . 1 Treads . | . . . Leg . | . . . Wheel 2 | 2 . . Hover . | . . . Flight 1 | . . 1 Utility 3 | 1 2 . Device 1 | . 1 . Storage 2 | 1 1 . Processor . | . . . Hackware . | . . . Protection . | . . . Artifact . | . . . Weapon 12 | 3 4 5 Energy Gun 7 | 2 3 2 Energy Cannon . | . . . Ballistic Gun 3 | 1 . 2 Ballistic Cannon . | . . . Launcher . | . . . Special Weapon 1 | . . 1 Impact Weapon . | . . . Slashing Weapon . | . . . Piercing Weapon . | . . . Special Melee Weapon 1 | . 1 . Unidentified Prototypes . | . . . Parts Lost 12 | . . 12 Power 1 | . . 1 Propulsion 3 | . . 3 Utility 1 | . . 1 Weapon 7 | . . 7 Highest Loss Streak 7 | . . 7 To Critical Strikes . | . . . Average Slot Usage (%) 60 | . 85 49 Engine 7 | . 14 4 Wheel 13 | . 28 7 Flight 2 | . . 3 Device 2 | . . 3 Storage 11 | . 14 11 Energy Gun 14 | . 26 8 Ballistic Gun 6 | . . 9 Naked Turns . | . . . Heaviest Build 22 | 13 21 22 Greatest Support 20 | 20 20 20 Greatest Overweight (x) 7 | 2 1 7 Average Overweight (x) 1 | . . 2 Largest Inventory Capacity 10 | 8 10 10 Average Capacity 9 | 6 9 10 Most Carried 8 | 1 7 8 Average Carried 5 | . 4 5 Final Capacity 10 | 8 10 10 Final Carried 7 | 1 7 6 Class Distribution -------------------- 100% | Mutant Dominant Class ---------------- Mutant | -10/Materials Mutant | -9/Materials Resources | -11 -10 -9 ----------- Run | Yrd Mat Mat Matter Collected 377 | 185 104 88 Remotely . | . . . Salvage Created 414 | . 104 310 Parts 20 | . 3 17 Haulers Intercepted . | . . . Recyclers Shooed . | . . . Parts Field Recycled . | . . . Retrieved Matter . | . . . Parts Self-Destructed . | . . . Prevented . | . . . Kills | -11 -10 -9 ------- Run | Yrd Mat Mat Combat Hostiles Destroyed 11 | . 2 9 Guns 7 | . 2 5 Cannons 3 | . . 3 Classes Destroyed 3 | . 1 2 Swarmer 3 | . . 3 Grunt 7 | . 2 5 Sentry 1 | . . 1 Best Kill Streak 5 | . 2 5 Combat Bots Only 5 | . 2 5 Max Kills in Single Turn 1 | . 1 1 Gunslinging . | . . . Exploded . | . . . Melee . | . . . Uniques/NPCs Destroyed . | . . . Combat | -11 -10 -9 -------- Run | Yrd Mat Mat Hostile Shots Fired 214 | . 16 198 Missed 60 | . 4 56 Damage Taken 1389 | . 116 1273 Core 438 | . 32 406 Absorbed by Shields . | . . . Ignored by Resistances 424 | . 37 387 Core Remaining (%) 93 | 100 87 . Volleys Fired 47 | . 11 36 Largest 2 | . 2 2 Hottest 115 | . 100 115 Shots Fired 78 | . 19 59 Gun 69 | . 19 50 Cannon . | . . . Launcher . | . . . Special 9 | . . 9 Kinetic 12 | . . 12 Thermal 66 | . 19 47 Explosive . | . . . Electromagnetic . | . . . Robot Hit Streak 28 | . 5 28 Robot Miss Streak 2 | . 2 1 Penetration Max . | . . . Secondary Targets 1 | . 1 . Max Gunslinging Chain 1 | . 1 . Shots Hit Robots 70 | . 17 53 Core Hits 22 | . 5 17 Critical Kills . | . . . Critical Parts Destroyed . | . . . Critical Strikes 5 | . 1 4 Burn 4 | . 1 3 Sever 1 | . . 1 Melee Attacks 5 | . 5 . Impact . | . . . Slashing . | . . . Piercing . | . . . Sneak Attacks 2 | . 2 . Combat Hostiles . | . . . Follow-up Attacks . | . . . Damage Inflicted 808 | . 168 640 Guns 685 | . 161 524 Cannons . | . . . Explosions . | . . . Melee . | . . . Ramming 20 | . 7 13 Kinetic 80 | . . 80 Thermal 708 | . 161 547 Explosive . | . . . Electromagnetic . | . . . Impact . | . . . Slashing . | . . . Piercing . | . . . Highest Corruption . | . . . Average Corruption . | . . . Corruption Purged . | . . . Corruption Blocked . | . . . Overload Shots . | . . . Overflow Damage . | . . . Projectiles . | . . . Explosions . | . . . Melee . | . . . Knockbacks 1 | . . 1 Impact 1 | . . 1 Kinetic . | . . . Secondary . | . . . Self-Inflicted Damage 9 | . 3 6 Shots . | . . . Rammed 6 | . 1 5 Targets Rammed 6 | . 1 5 Kicked . | . . . Crushed . | . . . Highest Temperature 357 | . 357 98 Average Temperature 105 | . 183 37 Received Heat Transfer 744 | . 84 660 Siege Activations . | . . . Robots Corrupted . | . . . Combat Hostiles . | . . . Parts Fried . | . . . Impact Corruptions . | . . . Robots Melted 1 | . . 1 Combat Hostiles 1 | . . 1 Parts Melted 4 | . 2 2 Heat Transferred 2319 | . 555 1764 Parts Sabotaged . | . . . Parts Stolen . | . . . Parts Stripped . | . . . Power Chain Reactions . | . . . Alert | -11 -10 -9 ------- Run | Yrd Mat Mat Peak Influence 194 | . 66 194 Initial 23 | . . 23 Average 77 | . 11 114 Maximum Alert Level . | . . . Low Security (%) 100 | 100 100 100 Level 1 . | . . . Level 2 . | . . . Level 3 . | . . . Level 4 . | . . . Level 5 . | . . . High Security . | . . . Max Security . | . . . Squads Dispatched 2 | . . 2 Investigation . | . . . Extermination . | . . . Reinforcement 2 | . . 2 Assault . | . . . Garrison . | . . . Intercept . | . . . Searches Triggered . | . . . Construction Impeded . | . . . Haulers Reinforced . | . . . Active Scanning Responses . | . . . Cargo Convoy Interrupts . | . . . Stealth | -11 -10 -9 --------- Run | Yrd Mat Mat Distress Signals 1 | . . 1 Communications Jammed . | . . . Distress Signals . | . . . Times Spotted 24 | . 5 19 Peak Tracking Total 10 | . 3 10 Tactical Retreats 1 | . . 1 Traps | -11 -10 -9 ------- Run | Yrd Mat Mat Traps Triggered 1 | . . 1 Indirectly . | . . . Trap Hack Attempts . | . . . Triggered . | . . . Disarmed . | . . . Reprogrammed . | . . . Reused . | . . . Traps Extracted . | . . . Installed . | . . . Triggered . | . . . Machines | -11 -10 -9 ---------- Run | Yrd Mat Mat Machines Disabled . | . . . Max in Single Turn . | . . . Machines Repaired . | . . . Machines Dismantled . | . . . Machines Sabotaged . | . . . Overloaded Fab Kills . | . . . Hacking | -11 -10 -9 --------- Run | Yrd Mat Mat Machines Accessed 2 | . 1 1 Terminals 2 | . 1 1 Fabricators . | . . . Repair Stations . | . . . Recycling Units . | . . . Scanalyzers . | . . . Garrison Access . | . . . Total Hacks 5 | . 2 3 Successful 4 | . 1 3 Failed 1 | . 1 . Catastrophic . | . . . Database Lockouts . | . . . Manual 1 | . 1 . Terminals 5 | . 2 3 Fabricators . | . . . Repair Stations . | . . . Recycling Units . | . . . Scanalyzers . | . . . Garrison Access . | . . . Terminal Hacks 4 | . 1 3 Record 4 | . 1 3 Fabricator Hacks . | . . . Repair Station Hacks . | . . . Recycling Unit Hacks . | . . . Scanalyzer . | . . . Garrison Access Hacks . | . . . Unauthorized Hacks . | . . . Terminals . | . . . Fabricators . | . . . Repair Stations . | . . . Recycling Units . | . . . Scanalyzers . | . . . Garrison Access . | . . . Data Cores Recovered . | . . . Used . | . . . Hacking Detections 1 | . . 1 Full Trace Events . | . . . Feedback Events . | . . . Feedback Blocked . | . . . Robot Schematics Acquired . | . . . Robots Built . | . . . Authchips . | . . . Time . | . . . Total Robot Build Rating . | . . . Part Schematics Acquired . | . . . Parts Built . | . . . Authchips . | . . . Time . | . . . Total Part Build Rating . | . . . Parts Repaired . | . . . Time . | . . . Parts Recycled . | . . . Recycled Matter . | . . . Retrieved Matter . | . . . Retrieved Components . | . . . Parts Scanalyzed . | . . . Part Schematics Acquired . | . . . Parts Damaged . | . . . Bothacking | -11 -10 -9 ------------ Run | Yrd Mat Mat Used RIF Installer . | . . . Robots Hacked 2 | . 2 . Non-combat 2 | . 2 . Combat . | . . . Robot Hacks Applied 2 | . 2 . parse_system 2 | . 2 . Relay Couplers Released . | . . . Fabnet Peak Effective % . | . . . Robots Rewired . | . . . Allies Hacked . | . . . Hacks Repelled . | . . . Allies | -11 -10 -9 -------- Run | Yrd Mat Mat Total Allies . | . . . Largest Group . | . . . Highest-Rated Group . | . . . Highest-Rated Ally . | . . . Total Orders . | . . . Ally Attacks . | . . . Total Damage . | . . . Kills . | . . . Allies Corrupted . | . . . Allies Melted . | . . . Intel | -11 -10 -9 ------- Run | Yrd Mat Mat Robot Analysis Total . | . . . Derelict Logs Recovered . | . . . Drone Launches . | . . . Drone Recoveries . | . . . Exploration | -11 -10 -9 ------------- Run | Yrd Mat Mat Turns Passed 719 | 45 207 467 Spaces Moved 406 | 42 155 209 Core 49 | 6 . 43 Treads . | . . . Legs . | . . . Wheels 284 | 36 155 93 Hover . | . . . Flight 73 | . . 73 Fastest Speed 50 | 50 80 95 Average Speed 125 | 81 80 167 Slowest Speed 400 | 150 95 400 Overloaded Moves . | . . . Propulsion Burnouts . | . . . Robots Hopped . | . . . Cave-ins Triggered . | . . . Exploration Rate (%) 16 | 3 24 22 Regions Visited 2 Branch Regions . Pre-discovered Areas . | . . . Known Exits Taken . | . . . Unknown Exits Taken 2 | 1 1 . Scrap Searched . | . . . Spaces Dug . | . . . Terrain Destroyed . | . . . Melee . | . . . Projectile . | . . . AOE . | . . . Terrain Rammed . | . . . Walls Destroyed . | . . . Machines Disabled . | . . . Actions | -11 -10 -9 --------- Run | Yrd Mat Mat Total 525 | 49 215 261 Wait 31 | . 31 . Move 404 | 41 154 209 Hop . | . . . Pick Up 7 | . 3 4 Fast Attach 12 | 7 3 2 Attach 7 | . 2 5 Detach 5 | 1 4 . Swap 1 | . 1 . Drop . | . . . Fire 47 | . 11 36 Melee 5 | . 5 . Ram 6 | . 1 5 Kick . | . . . Crush . | . . . Escape Stasis . | . . . Rewire . | . . . Trap . | . . . Miscellaneous . | . . . Route ------- -11/Scrapyard -10/Materials -9/Materials (discovered 1 exit: [*Min]) History --------- Turn | Location | Event 21 | -11/Scrapyard | Discovered new exit (range 16) 46 | -11/Scrapyard | Entered Materials 203 | -10/Materials | Discovered new exit (range 5) 253 | -10/Materials | Entered another Materials area 253 | -9/Materials | Evolved 2 slots: Propulsion x1, Utility x1 306 | -9/Materials | Build established: Mutant 460 | -9/Materials | Lost 7 parts (1p2n1u3w) 485 | -9/Materials | Core integrity fell below 50% 669 | -9/Materials | Discovered new exit (range 15) 685 | -9/Materials | Core integrity fell below 20% 720 | -9/Materials | Destroyed by G-34 Mercenary with Small Laser Last Messages --------------- 00679_ Acquired Grenade Launcher. 00679_ K-01 Serf collects debris. 00682_ Lgt. Assault Rifle destroyed. 00684_ K-01 Serf collects debris. 00687_ U-05 Engineer lays Concrete. 00690_ K-01 Serf collects debris. 00692_ U-05 Engineer lays Concrete. 00696_ K-01 Serf collects debris. 00697_ Lgt. Assault Rifle destroyed. 00697_ U-05 Engineer lays Concrete. 00701_ K-01 Serf collects debris. 00701_ U-05 Engineer lays Concrete. 00705_ K-01 Serf collects debris. 00705_ U-05 Engineer lays Concrete. 00711_ K-01 Serf collects debris. 00712_ U-05 Engineer lays Concrete. 00714_ K-01 Serf collects debris. 00715_ U-05 Engineer lays Concrete. 00718_ K-01 Serf collects debris. 00719_ U-05 Engineer lays Concrete. Map ----- +----------------------------------------------------+ | | | | | | | | | | | | | | | | | | | | | ????????????????????????????????? | | ?????????#######????????????????? | | ?????????# #????????????????? | | ?????????# ##############???? | | ?????????# !% % !#???? | | ?????????# ### ##### #???? | | ?????????# #?# #???# ##### | | ??????##########?# #???#% % % | | ?????##"""##?????######???####### | | ????##"|||"##???????????????????# | | ????#"" ""#???????????????????# | | ????# #???????????????????# | | ????# < #???????????????????# | | ????# #???????????????????# | | ????# o #???????????????????# | | ?????# @ #??????????????????### | | ?????## ##??????????????????# | | # """ # #######+###?????????# | | # """ + ^ #?????????# | | # """ # #?????????# = | | ? # gT ^ """ !#?????????# | | # * ?# ^ g """ #???###+####+ | | #! ??# u " ##### ##% | | # ???# ^ | | ##????# T | | ??????# "" % | | ??????# ] ] " ##### ### | | ??????# ]] """ #??####/##### | | ??????# ]]* #??# # | | ??????+ #??# # | | ??????# #??# """ # | | ??????###+######## ##??# """"" # | | ?????????????????# #???# """"" # | | ?????????????????# #???# """"" # | | ?????????????????# ????# """ # | | ?????????????????# ????# # | | ????????????????? ????# # | | ?????????????????# ????########## | | ?????????????????? ?????????????? | | ?????????????????? ?????????????? | +----------------------------------------------------+ Best States ------------- Heat Dissipation 42 Energy Generation 12 Energy Capacity 265 Matter Stores 300 Matter Capacity 300 Sight Range 16 Terrain Scan Density 10 Resistance: KI 20 Resistance: TH 20 Resistance: EX 20 Resistance: EM 20 Resistance: I 20 Resistance: S 20 Resistance: P 20 Evasion (%) 44 Offensive Hacking 10 Item Schematics ----------------- None Robot Schematics ------------------ None Fabricated ------------ Nothing Alien Tech Used ----------------- None Achievements -------------- None Challenges ------------ None Game ------ Seed GuidedGravityStabilizer Manual? 0 Play Time 00:12:51 Cumulative 5.7 hours Start 2024.04.01 @ 21:42:41 End 2024.04.01 @ 21:52:17 Sessions 1 Manual Loads 0 Difficulty Adventurer Special Mode None Game No. 14 Rogue 0 Adventurer 14 Explorer 0 Win Type - Total 0 Types 0/0/0/0/0/0/0/0/0 Lore% 13 Gallery% 15 Achievement% 14 Wizard Run 0 Options --------- Layout 0 ASCII 0 Keyboard 1 Movement Numpad Keybinds 0 Fullscreen 1 Font 24/Smallcaps Map View 76x50 Zoom Use 0% Tactical HUD 1 Map Filters NONE Filters NONE Steam 1 RUN: 136d12f4-4a70-4bb8-a579-12eb7f17fcfb